fUST/lending_fUST_20250511
["ID","MTS","AMOUNT","RATE_DAILY","PERIOD"]
[360738291,1746958344084,-400.0,9.401e-05,2]
[360738292,1746958344111,-400.0,9.401e-05,2]
[360738293,1746958344139,-400.0,9.401e-05,2]
[360738294,1746958344164,-400.0,9.401e-05,2]
[360738295,1746958344315,-400.0,9.401e-05,2]
[360738296,1746958344343,-515.3,9.401e-05,2]
[360738297,1746958344369,-400.0,9.401e-05,2]
[360738298,1746958344396,-400.0,9.401e-05,2]
[360738299,1746958344423,-400.0,9.401e-05,2]
[360738300,1746958344450,-400.0,9.401e-05,2]
[360738301,1746958344477,-400.0,9.401e-05,2]
[360738302,1746958344503,-400.0,9.401e-05,2]
[360738303,1746958344528,-160.0,9.416e-05,2]
[360738304,1746958344553,-160.0,9.422e-05,2]
[360738305,1746958344578,-160.0,9.422e-05,2]
[360738306,1746958344603,-160.0,9.422e-05,2]
[360738307,1746958344629,-160.0,9.422e-05,2]
[360738308,1746958344654,-160.0,9.422e-05,2]
[360738309,1746958344680,-12621.47167665,9.422e-05,2]
[360738310,1746958344704,-160.0,9.422e-05,2]
[360738311,1746958344728,-422.1676983,9.422e-05,2]
[360738312,1746958344754,-160.0,9.422e-05,2]
[360738313,1746958344778,-997.71092301,9.424e-05,2]
[360738314,1746958344804,-400.0,9.437e-05,2]
[360738315,1746958344829,-519.72,9.437e-05,2]
[360738316,1746958344855,-289.98079823,9.437e-05,2]
[360738317,1746958344881,-400.0,9.437e-05,2]
[360738318,1746958344905,-400.0,9.437e-05,2]
[360738319,1746958344930,-400.0,9.437e-05,2]
[360738320,1746958344955,-400.0,9.437e-05,2]
[360738321,1746958344982,-400.0,9.437e-05,2]
[360738322,1746958345008,-540.82335012,9.437e-05,2]
[360738323,1746958345033,-400.0,9.437e-05,2]
[360738324,1746958345058,-150.91129036,9.437e-05,2]
[360738330,1746958730226,24805.96692971,0.00022,30]
[360738333,1746958803377,155.891242,0.00022,30]
[360738356,1746959343480,155.891242,0.00022,30]
[360738431,1746959432789,-404.0,8.307e-05,2]
[360738433,1746959432800,-500.0,8.562e-05,2]
[360738435,1746959432811,-175.0,8.562e-05,2]
[360738437,1746959432823,-170.5055661,8.846e-05,2]
[360738439,1746959432837,-207.4,8.846e-05,2]
[360738441,1746959432847,-289.63593826,8.85e-05,2]
[360738443,1746959432859,-240.45742869,8.85e-05,2]
[360738445,1746959432870,-400.0,8.85e-05,2]
[360738447,1746959432881,-400.0,8.85e-05,2]
[360738449,1746959432892,-400.0,8.85e-05,2]
[360738451,1746959432903,-400.0,8.85e-05,2]
[360738453,1746959432914,-400.0,8.85e-05,2]
[360738456,1746959432926,-400.0,8.85e-05,2]
[360738457,1746959432937,-504.41227335,8.85e-05,2]
[360738460,1746959432947,-429.42,8.85e-05,2]
[360738462,1746959432958,-400.0,8.85e-05,2]
[360738464,1746959432969,-400.0,8.85e-05,2]
[360738466,1746959432979,-400.0,8.85e-05,2]
[360738468,1746959432988,-400.0,8.85e-05,2]
[360738470,1746959432998,-400.0,8.85e-05,2]
[360738471,1746959433008,-400.0,8.85e-05,2]
[360738473,1746959433018,-400.0,8.85e-05,2]
[360738475,1746959433028,-400.0,8.85e-05,2]
[360738478,1746959433039,-400.0,8.85e-05,2]
[360738479,1746959433050,-450.27,8.85e-05,2]
[360738482,1746959433060,-822.28,8.85e-05,2]
[360738483,1746959433070,-400.0,8.85e-05,2]
[360738486,1746959433081,-400.0,8.85e-05,2]
[360738488,1746959433091,-400.0,8.85e-05,2]
[360738490,1746959433102,-691.86,8.85e-05,2]
[360738492,1746959433111,-400.0,8.85e-05,2]
[360738494,1746959433121,-400.0,8.85e-05,2]
[360738496,1746959433131,-400.0,8.85e-05,2]
[360738498,1746959433142,-400.0,8.85e-05,2]
[360738500,1746959433152,-400.0,8.85e-05,2]
[360738502,1746959433162,-400.0,8.85e-05,2]
[360738504,1746959433171,-400.0,8.85e-05,2]
[360738506,1746959433181,-400.0,8.85e-05,2]
[360738508,1746959433191,-400.0,8.85e-05,2]
[360738510,1746959433200,-400.0,8.85e-05,2]
[360738512,1746959433210,-400.0,8.85e-05,2]
[360738514,1746959433221,-390.51504553,8.85e-05,2]
[360738516,1746959433231,-400.0,8.85e-05,2]
[360738518,1746959433240,-400.0,8.85e-05,2]
[360738520,1746959433250,-400.0,8.85e-05,2]
[360738522,1746959433259,-250.17,8.851e-05,2]
[360738524,1746959433269,-400.0,8.851e-05,2]
[360738526,1746959433278,-400.0,8.851e-05,2]
[360738528,1746959433287,-400.0,8.851e-05,2]
[360738530,1746959433297,-450.48,8.851e-05,2]
[360738532,1746959433306,-400.0,8.851e-05,2]
[360738534,1746959433315,-400.0,8.851e-05,2]
[360738536,1746959433324,-400.0,8.851e-05,2]
[360738538,1746959433334,-400.0,8.851e-05,2]
[360738540,1746959433344,-400.0,8.851e-05,2]
[360738542,1746959433353,-400.0,8.851e-05,2]
[360738544,1746959433363,-400.0,8.851e-05,2]
[360738546,1746959433372,-433.1,8.851e-05,2]
[360738548,1746959433382,-400.0,8.851e-05,2]
[360738550,1746959433391,-400.0,8.851e-05,2]
[360738552,1746959433401,-400.0,8.851e-05,2]
[360738554,1746959433411,-400.0,8.851e-05,2]
[360738556,1746959433421,-400.0,8.851e-05,2]
[360738558,1746959433431,-400.0,8.851e-05,2]
[360738560,1746959433440,-400.0,8.851e-05,2]
[360738562,1746959433449,-400.0,8.851e-05,2]
[360738564,1746959433459,-400.0,8.851e-05,2]
[360738566,1746959433468,-400.0,8.851e-05,2]
[360738568,1746959433478,-400.0,8.851e-05,2]
[360738570,1746959433488,-400.0,8.851e-05,2]
[360738572,1746959433497,-400.0,8.851e-05,2]
[360738574,1746959433508,-400.0,8.851e-05,2]
[360738576,1746959433518,-443.17,8.851e-05,2]
[360738578,1746959433527,-518.62224313,8.851e-05,2]
[360738580,1746959433539,-400.0,8.851e-05,2]
[360738582,1746959433548,-400.0,8.851e-05,2]
[360738584,1746959433557,-400.0,8.851e-05,2]
[360738586,1746959433567,-400.0,8.851e-05,2]
[360738588,1746959433576,-400.0,8.851e-05,2]
[360738590,1746959433586,-400.0,8.851e-05,2]
[360738591,1746959433596,-400.0,8.851e-05,2]
[360738593,1746959433605,-400.0,8.851e-05,2]
[360738595,1746959433616,-400.0,8.851e-05,2]
[360738596,1746959433625,-400.0,8.851e-05,2]
[360738598,1746959433635,-400.0,8.851e-05,2]
[360738600,1746959433644,-477.9,8.851e-05,2]
[360738602,1746959433653,-400.0,8.851e-05,2]
[360738604,1746959433663,-400.0,8.851e-05,2]
[360738606,1746959433672,-400.0,8.851e-05,2]
[360738608,1746959433681,-400.0,8.851e-05,2]
[360738610,1746959433691,-400.0,8.851e-05,2]
[360738612,1746959433701,-517.5,8.851e-05,2]
[360738614,1746959433712,-400.0,8.851e-05,2]
[360738616,1746959433722,-400.0,8.851e-05,2]
[360738618,1746959433731,-400.0,8.851e-05,2]
[360738620,1746959433742,-400.0,8.851e-05,2]
[360738622,1746959433752,-400.0,8.851e-05,2]
[360738624,1746959433764,-400.0,8.851e-05,2]
[360738626,1746959433775,-400.0,8.851e-05,2]
[360738628,1746959433785,-400.0,8.851e-05,2]
[360738630,1746959433794,-400.0,8.851e-05,2]
[360738632,1746959433804,-953.63,8.851e-05,2]
[360738634,1746959433813,-418.2661039,8.851e-05,2]
[360738636,1746959433824,-400.0,8.851e-05,2]
[360738638,1746959433834,-400.0,8.851e-05,2]
[360738641,1746959433845,-400.0,8.851e-05,2]
[360738643,1746959433854,-400.0,8.851e-05,2]
[360738645,1746959433863,-269.54487812,8.851e-05,2]
[360738646,1746959433873,-400.0,8.851e-05,2]
[360738648,1746959433883,-400.0,8.851e-05,2]
[360738650,1746959433892,-684.99,8.851e-05,2]
[360738652,1746959433902,-400.0,8.851e-05,2]
[360738654,1746959433912,-400.0,8.851e-05,2]
[360738656,1746959433922,-400.0,8.851e-05,2]
[360738658,1746959433932,-400.0,8.851e-05,2]
[360738661,1746959433950,-400.0,8.851e-05,2]
[360738664,1746959433962,-400.0,8.851e-05,2]
[360738666,1746959433971,-400.0,8.851e-05,2]
[360738668,1746959433982,-400.0,8.851e-05,2]
[360738670,1746959433992,-400.0,8.851e-05,2]
[360738672,1746959434001,-400.0,8.851e-05,2]
[360738674,1746959434011,-400.0,8.851e-05,2]
[360738676,1746959434021,-400.0,8.851e-05,2]
[360738678,1746959434031,-497.89,8.851e-05,2]
[360738680,1746959434041,-400.0,8.851e-05,2]
[360738682,1746959434051,-400.0,8.851e-05,2]
[360738684,1746959434061,-400.0,8.851e-05,2]
[360738685,1746959434071,-400.0,8.851e-05,2]
[360738687,1746959434081,-400.0,8.851e-05,2]
[360738689,1746959434091,-400.0,8.851e-05,2]
[360738691,1746959434101,-153.0,8.86e-05,2]
[360738693,1746959434111,-157.8397362,8.86e-05,2]
[360738695,1746959434121,-153.0,8.86e-05,2]
[360738698,1746959434131,-153.0,8.86e-05,2]
[360738699,1746959434141,-157.8397362,8.86e-05,2]
[360738701,1746959434150,-153.0,8.89e-05,2]
[360738703,1746959434161,-176.309,8.89e-05,2]
[360738705,1746959434170,-153.0,8.89e-05,2]
[360738708,1746959434181,-155.71470018,9.063e-05,2]
[360738710,1746959434191,-154.09971262,9.063e-05,2]
[360738712,1746959434200,-214.69052702,9.063e-05,2]
[360738714,1746959434210,-400.0,9.068e-05,2]
[360738716,1746959434220,-400.0,9.068e-05,2]
[360738718,1746959434230,-400.0,9.068e-05,2]
[360738720,1746959434240,-455.09,9.068e-05,2]
[360738722,1746959434251,-400.0,9.068e-05,2]
[360738724,1746959434260,-401.87212747,9.068e-05,2]
[360738726,1746959434270,-405.89861047,9.068e-05,2]
[360738728,1746959434279,-265.99942209,9.068e-05,2]
[360738730,1746959434289,-410.80150258,9.068e-05,2]
[360738732,1746959434299,-511.47560884,9.068e-05,2]
[360738734,1746959434309,-401.28182508,9.068e-05,2]
[360738736,1746959434318,-404.27285031,9.068e-05,2]
[360738738,1746959434328,-400.0,9.068e-05,2]
[360738740,1746959434339,-400.0,9.068e-05,2]
[360738742,1746959434349,-408.77951675,9.068e-05,2]
[360738743,1746959434360,-400.0,9.068e-05,2]
[360738744,1746959434370,-406.28092335,9.068e-05,2]
[360738745,1746959434381,-400.0,9.068e-05,2]
[360738746,1746959434392,-407.3519758,9.068e-05,2]
[360738747,1746959434402,-401.35,9.068e-05,2]
[360738748,1746959434411,-408.0430097,9.068e-05,2]
[360738749,1746959434422,-407.52930428,9.068e-05,2]
[360738750,1746959434433,-414.79798971,9.068e-05,2]
[360738751,1746959434442,-400.0,9.068e-05,2]
[360738752,1746959434452,-400.0,9.068e-05,2]
[360738753,1746959434462,-422.76,9.068e-05,2]
[360738754,1746959434472,-408.77503206,9.068e-05,2]
[360738755,1746959434482,-400.0,9.068e-05,2]
[360738756,1746959434491,-400.0,9.068e-05,2]
[360738757,1746959434501,-400.0,9.068e-05,2]
[360738758,1746959434511,-400.0,9.068e-05,2]
[360738759,1746959434520,-406.6,9.068e-05,2]
[360738760,1746959434530,-412.49586533,9.068e-05,2]
[360738761,1746959434540,-495.22,9.068e-05,2]
[360738762,1746959434553,-360.25554193,9.068e-05,2]
[360738763,1746959434562,-404.90038416,9.068e-05,2]
[360738764,1746959434571,-400.0,9.068e-05,2]
[360738765,1746959434581,-404.63857751,9.068e-05,2]
[360738766,1746959434592,-448.71066054,9.068e-05,2]
[360738767,1746959434602,-406.17934845,9.068e-05,2]
[360738769,1746959434612,-405.03804003,9.068e-05,2]
[360738771,1746959434623,-406.04983001,9.068e-05,2]
[360738773,1746959434634,-405.87033043,9.068e-05,2]
[360738775,1746959434644,-332.92200679,9.068e-05,2]
[360738777,1746959434654,-400.0,9.068e-05,2]
[360738780,1746959434664,-403.41771361,9.068e-05,2]
[360738782,1746959434674,-403.87593763,9.068e-05,2]
[360738784,1746959434683,-404.82811863,9.068e-05,2]
[360738786,1746959434693,-400.0,9.068e-05,2]
[360738788,1746959434702,-400.0,9.068e-05,2]
[360738790,1746959434712,-405.46459134,9.068e-05,2]
[360738791,1746959434722,-400.0,9.068e-05,2]
[360738793,1746959434732,-428.78936671,9.068e-05,2]
[360738795,1746959434742,-400.0,9.068e-05,2]
[360738797,1746959434752,-400.0,9.068e-05,2]
[360738798,1746959434761,-405.87895408,9.068e-05,2]
[360738799,1746959434771,-404.76504422,9.068e-05,2]
[360738800,1746959434781,-405.54737752,9.068e-05,2]
[360738801,1746959434791,-400.0,9.068e-05,2]
[360738802,1746959434800,-400.0,9.068e-05,2]
[360738803,1746959434810,-400.0,9.068e-05,2]
[360738804,1746959434819,-404.87690379,9.068e-05,2]
[360738806,1746959434829,-400.0,9.068e-05,2]
[360738807,1746959434839,-400.0,9.068e-05,2]
[360738808,1746959434849,-402.10886949,9.068e-05,2]
[360738810,1746959434859,-407.54603557,9.068e-05,2]
[360738812,1746959434869,-401.20038481,9.068e-05,2]
[360738814,1746959434879,-400.0,9.068e-05,2]
[360738816,1746959434888,-400.0,9.068e-05,2]
[360738818,1746959434898,-400.0,9.068e-05,2]
[360738820,1746959434908,-400.0,9.068e-05,2]
[360738822,1746959434918,-206.36732322,9.068e-05,2]
[360738824,1746959434928,-400.0,9.068e-05,2]
[360738826,1746959434938,-400.0,9.068e-05,2]
[360738828,1746959434950,-170.14306566,9.068e-05,2]
[360738831,1746959434961,-400.0,9.068e-05,2]
[360738833,1746959434972,-402.48685551,9.068e-05,2]
[360738835,1746959434983,-400.0,9.068e-05,2]
[360738837,1746959434992,-432.196003,9.068e-05,2]
[360738839,1746959435002,-403.01900269,9.068e-05,2]
[360738841,1746959435011,-400.0,9.068e-05,2]
[360738843,1746959435025,-400.0,9.068e-05,2]
[360738845,1746959435035,-400.0,9.068e-05,2]
[360738847,1746959435045,-400.0,9.068e-05,2]
[360738849,1746959435056,-400.0,9.068e-05,2]
[360738851,1746959435066,-400.0,9.068e-05,2]
[360738853,1746959435075,-400.0,9.068e-05,2]
[360738855,1746959435087,-400.0,9.068e-05,2]
[360738857,1746959435096,-400.0,9.068e-05,2]
[360738859,1746959435106,-400.0,9.068e-05,2]
[360738862,1746959435117,-400.0,9.068e-05,2]
[360738864,1746959435127,-400.0,9.068e-05,2]
[360738866,1746959435137,-400.0,9.068e-05,2]
[360738868,1746959435147,-400.0,9.068e-05,2]
[360738869,1746959435156,-336.4144491,9.068e-05,2]
[360738871,1746959435166,-400.0,9.068e-05,2]
[360738873,1746959435176,-217.21352641,9.068e-05,2]
[360738875,1746959435186,-300.0,9.068e-05,2]
[360738877,1746959435196,-400.0,9.068e-05,2]
[360738879,1746959435205,-401.3758291,9.068e-05,2]
[360738881,1746959435214,-400.0,9.068e-05,2]
[360738883,1746959435224,-400.0,9.068e-05,2]
[360738885,1746959435234,-402.06614839,9.068e-05,2]
[360738887,1746959435243,-401.99384145,9.068e-05,2]
[360738889,1746959435253,-400.0,9.068e-05,2]
[360738891,1746959435262,-400.0,9.068e-05,2]
[360738893,1746959435271,-400.0,9.068e-05,2]
[360738895,1746959435281,-400.0,9.068e-05,2]
[360738897,1746959435290,-401.86302292,9.068e-05,2]
[360738899,1746959435300,-400.0,9.068e-05,2]
[360738901,1746959435309,-400.0,9.068e-05,2]
[360738903,1746959435319,-321.82896718,9.068e-05,2]
[360738905,1746959435328,-400.0,9.068e-05,2]
[360738907,1746959435338,-400.0,9.068e-05,2]
[360738909,1746959435348,-205.46326903,9.068e-05,2]
[360738911,1746959435357,-400.0,9.068e-05,2]
[360738913,1746959435367,-400.0,9.068e-05,2]
[360738915,1746959435377,-400.0,9.068e-05,2]
[360738917,1746959435386,-494.9,9.068e-05,2]
[360738920,1746959435396,-400.0,9.068e-05,2]
[360738921,1746959435406,-400.0,9.068e-05,2]
[360738924,1746959435416,-402.26154088,9.068e-05,2]
[360738926,1746959435425,-400.0,9.068e-05,2]
[360738928,1746959435436,-400.0,9.068e-05,2]
[360738930,1746959435445,-400.0,9.068e-05,2]
[360738932,1746959435455,-400.0,9.068e-05,2]
[360738934,1746959435465,-400.0,9.068e-05,2]
[360738936,1746959435474,-400.0,9.068e-05,2]
[360738938,1746959435485,-400.0,9.068e-05,2]
[360738940,1746959435494,-400.0,9.068e-05,2]
[360738942,1746959435504,-477.57,9.068e-05,2]
[360738944,1746959435514,-400.0,9.068e-05,2]
[360738946,1746959435524,-400.0,9.068e-05,2]
[360738948,1746959435533,-512.06980326,9.068e-05,2]
[360738950,1746959435545,-403.42664142,9.068e-05,2]
[360738952,1746959435555,-400.0,9.068e-05,2]
[360738954,1746959435564,-400.0,9.068e-05,2]
[360738956,1746959435574,-400.18374282,9.068e-05,2]
[360738958,1746959435584,-403.17183959,9.068e-05,2]
[360738960,1746959435595,-204.75916824,9.068e-05,2]
[360738962,1746959435604,-400.0,9.068e-05,2]
[360738964,1746959435614,-400.0,9.068e-05,2]
[360738966,1746959435624,-400.0,9.068e-05,2]
[360738968,1746959435634,-403.76743746,9.068e-05,2]
[360738970,1746959435644,-403.10255531,9.068e-05,2]
[360738972,1746959435653,-400.0,9.068e-05,2]
[360738974,1746959435663,-414.27,9.068e-05,2]
[360738976,1746959435672,-400.0,9.068e-05,2]
[360738978,1746959435681,-400.0,9.068e-05,2]
[360738980,1746959435691,-400.0,9.068e-05,2]
[360738982,1746959435700,-401.48805409,9.068e-05,2]
[360738984,1746959435710,-400.0,9.068e-05,2]
[360738986,1746959435719,-400.0,9.068e-05,2]
[360738988,1746959435728,-400.0,9.068e-05,2]
[360738990,1746959435738,-400.0,9.068e-05,2]
[360738993,1746959435751,-3798.01403037,9.068e-05,2]
[360738995,1746959435761,-400.0,9.068e-05,2]
[360738997,1746959435771,-405.50450269,9.068e-05,2]
[360738999,1746959435780,-405.25408016,9.068e-05,2]
[360739001,1746959435789,-546.0031443,9.068e-05,2]
[360739003,1746959435799,-400.0,9.068e-05,2]
[360739005,1746959435808,-450.19026978,9.068e-05,2]
[360739007,1746959435817,-400.0,9.068e-05,2]
[360739009,1746959435826,-400.0,9.068e-05,2]
[360739011,1746959435836,-400.0,9.068e-05,2]
[360739013,1746959435845,-450.51080404,9.068e-05,2]
[360739015,1746959435855,-406.30830121,9.068e-05,2]
[360739017,1746959435865,-405.58464807,9.068e-05,2]
[360739019,1746959435875,-406.88075304,9.068e-05,2]
[360739021,1746959435885,-400.0,9.068e-05,2]
[360739023,1746959435894,-403.07443237,9.068e-05,2]
[360739025,1746959435904,-400.0,9.068e-05,2]
[360739027,1746959435914,-403.0383551,9.068e-05,2]
[360739029,1746959435923,-400.0,9.068e-05,2]
[360739046,1746959436099,-400.0,9.068e-05,2]
[360739047,1746959436109,-400.0,9.069e-05,2]
[360739049,1746959436119,-533.54,9.069e-05,2]
[360739051,1746959436128,-400.0,9.069e-05,2]
[360739053,1746959436138,-400.0,9.069e-05,2]
[360739055,1746959436147,-401.10699086,9.069e-05,2]
[360739057,1746959436157,-400.0,9.069e-05,2]
[360739059,1746959436166,-400.0,9.069e-05,2]
[360739061,1746959436176,-400.0,9.069e-05,2]
[360739063,1746959436185,-645.75,9.069e-05,2]
[360739065,1746959436196,-400.0,9.069e-05,2]
[360739067,1746959436205,-400.0,9.069e-05,2]
[360739069,1746959436215,-400.0,9.069e-05,2]
[360739071,1746959436225,-400.0,9.069e-05,2]
[360739072,1746959436235,-400.0,9.069e-05,2]
[360739073,1746959436244,-400.0,9.069e-05,2]
[360739074,1746959436254,-400.0,9.069e-05,2]
[360739075,1746959436264,-400.0,9.069e-05,2]
[360739076,1746959436273,-400.0,9.069e-05,2]
[360739077,1746959436283,-400.0,9.069e-05,2]
[360739078,1746959436293,-400.0,9.069e-05,2]
[360739079,1746959436303,-400.0,9.069e-05,2]
[360739080,1746959436312,-400.0,9.069e-05,2]
[360739081,1746959436321,-404.6143142,9.069e-05,2]
[360739082,1746959436332,-401.23563217,9.069e-05,2]
[360739083,1746959436341,-400.0,9.069e-05,2]
[360739084,1746959436351,-400.0,9.069e-05,2]
[360739085,1746959436362,-400.0,9.069e-05,2]
[360739086,1746959436371,-400.0,9.069e-05,2]
[360739087,1746959436381,-400.0,9.069e-05,2]
[360739088,1746959436390,-400.0,9.069e-05,2]
[360739089,1746959436400,-400.0,9.069e-05,2]
[360739090,1746959436410,-400.0,9.124e-05,2]
[360739091,1746959436419,-400.0,9.124e-05,2]
[360739092,1746959436429,-400.0,9.124e-05,2]
[360739093,1746959436438,-429.42,9.124e-05,2]
[360739094,1746959436448,-400.0,9.124e-05,2]
[360739095,1746959436458,-400.0,9.124e-05,2]
[360739096,1746959436467,-400.0,9.124e-05,2]
[360739097,1746959436477,-400.0,9.124e-05,2]
[360739098,1746959436486,-400.0,9.124e-05,2]
[360739099,1746959436496,-517.15913409,9.124e-05,2]
[360739100,1746959436506,-400.0,9.124e-05,2]
[360739101,1746959436516,-393.53,9.124e-05,2]
[360739102,1746959436526,-450.27,9.124e-05,2]
[360739103,1746959436535,-822.28,9.124e-05,2]
[360739104,1746959436548,-400.0,9.124e-05,2]
[360739105,1746959436559,-400.0,9.124e-05,2]
[360739106,1746959436569,-400.0,9.124e-05,2]
[360739107,1746959436579,-691.86,9.124e-05,2]
[360739108,1746959436589,-400.0,9.124e-05,2]
[360739109,1746959436599,-400.0,9.124e-05,2]
[360739110,1746959436609,-400.0,9.124e-05,2]
[360739111,1746959436619,-400.0,9.124e-05,2]
[360739112,1746959436630,-379.00700685,9.124e-05,2]
[360739113,1746959436640,-400.0,9.124e-05,2]
[360739114,1746959436650,-400.0,9.124e-05,2]
[360739115,1746959436659,-248.84,9.124e-05,2]
[360739116,1746959436668,-400.0,9.124e-05,2]
[360739117,1746959436679,-400.0,9.124e-05,2]
[360739118,1746959436688,-400.0,9.125e-05,2]
[360739119,1746959436698,-428.54,9.125e-05,2]
[360739120,1746959436707,-400.0,9.125e-05,2]
[360739121,1746959436718,-235.44,9.125e-05,2]
[360739122,1746959436729,-400.0,9.125e-05,2]
[360739123,1746959436739,-400.0,9.125e-05,2]
[360739124,1746959436748,-400.0,9.125e-05,2]
[360739125,1746959436758,-400.0,9.125e-05,2]
[360739126,1746959436767,-400.0,9.125e-05,2]
[360739127,1746959436777,-400.0,9.125e-05,2]
[360739128,1746959436787,-433.1,9.125e-05,2]
[360739129,1746959436796,-400.0,9.125e-05,2]
[360739130,1746959436806,-400.0,9.125e-05,2]
[360739131,1746959436816,-400.0,9.125e-05,2]
[360739132,1746959436826,-400.0,9.125e-05,2]
[360739133,1746959436837,-400.0,9.125e-05,2]
[360739134,1746959436853,-400.0,9.125e-05,2]
[360739135,1746959436862,-400.0,9.125e-05,2]
[360739136,1746959436872,-400.0,9.125e-05,2]
[360739137,1746959436882,-400.0,9.125e-05,2]
[360739138,1746959436893,-400.0,9.125e-05,2]
[360739139,1746959436903,-400.0,9.125e-05,2]
[360739140,1746959436913,-328.28,9.125e-05,2]
[360739141,1746959436923,-531.42,9.125e-05,2]
[360739142,1746959436932,-492.81,9.125e-05,2]
[360739143,1746959436942,-400.0,9.125e-05,2]
[360739144,1746959436952,-400.0,9.125e-05,2]
[360739145,1746959436962,-548.23,9.125e-05,2]
[360739146,1746959436972,-400.0,9.125e-05,2]
[360739147,1746959436982,-400.0,9.125e-05,2]
[360739148,1746959436991,-400.0,9.125e-05,2]
[360739149,1746959437001,-400.0,9.125e-05,2]
[360739150,1746959437011,-400.0,9.125e-05,2]
[360739151,1746959437020,-400.0,9.125e-05,2]
[360739152,1746959437030,-476.83454168,9.125e-05,2]
[360739153,1746959437040,-953.63,9.125e-05,2]
[360739154,1746959437049,-344.73,9.125e-05,2]
[360739155,1746959437059,-400.0,9.125e-05,2]
[360739156,1746959437068,-452.95762947,9.125e-05,2]
[360739157,1746959437077,-400.0,9.125e-05,2]
[360739158,1746959437088,-400.0,9.125e-05,2]
[360739159,1746959437098,-684.99,9.125e-05,2]
[360739160,1746959437107,-406.50605216,9.125e-05,2]
[360739161,1746959437117,-400.0,9.125e-05,2]
[360739162,1746959437127,-400.0,9.125e-05,2]
[360739163,1746959437136,-400.0,9.125e-05,2]
[360739164,1746959437146,-400.0,9.125e-05,2]
[360739165,1746959437155,-400.0,9.125e-05,2]
[360739166,1746959437165,-234.91,9.125e-05,2]
[360739167,1746959437175,-400.0,9.125e-05,2]
[360739168,1746959437185,-400.0,9.125e-05,2]
[360739169,1746959437194,-400.0,9.125e-05,2]
[360739170,1746959437203,-400.0,9.125e-05,2]
[360739171,1746959437213,-400.0,9.342e-05,2]
[360739172,1746959437222,-240.86,9.342e-05,2]
[360739173,1746959437231,-456.12,9.342e-05,2]
[360739174,1746959437241,-441.32,9.342e-05,2]
[360739175,1746959437251,-416.6,9.342e-05,2]
[360739176,1746959437261,-312.05,9.342e-05,2]
[360739177,1746959437271,-400.0,9.342e-05,2]
[360739178,1746959437281,-404.83840472,9.342e-05,2]
[360739179,1746959437291,-401.94464083,9.342e-05,2]
[360739180,1746959437300,-400.0,9.342e-05,2]
[360739181,1746959437312,-402.63976057,9.342e-05,2]
[360739182,1746959437323,-401.54981595,9.342e-05,2]
[360739183,1746959437333,-400.0,9.342e-05,2]
[360739184,1746959437343,-400.0,9.342e-05,2]
[360739185,1746959437355,-400.0,9.342e-05,2]
[360739186,1746959437364,-400.0,9.342e-05,2]
[360739187,1746959437374,-400.0,9.342e-05,2]
[360739188,1746959437384,-400.0,9.342e-05,2]
[360739189,1746959437394,-403.22312051,9.342e-05,2]
[360739190,1746959437404,-400.0,9.342e-05,2]
[360739191,1746959437415,-400.0,9.342e-05,2]
[360739192,1746959437426,-400.0,9.342e-05,2]
[360739193,1746959437437,-506.4596391,9.342e-05,2]
[360739194,1746959437448,-400.0,9.342e-05,2]
[360739195,1746959437458,-400.0,9.342e-05,2]
[360739196,1746959437467,-400.0,9.342e-05,2]
[360739197,1746959437476,-273.68,9.342e-05,2]
[360739198,1746959437486,-302.58699687,9.342e-05,2]
[360739199,1746959437495,-400.0,9.342e-05,2]
[360739200,1746959437504,-401.90022057,9.342e-05,2]
[360739201,1746959437518,-400.0,9.342e-05,2]
[360739202,1746959437529,-400.0,9.342e-05,2]
[360739203,1746959437541,-263.79,9.342e-05,2]
[360739204,1746959437554,-400.0,9.342e-05,2]
[360739205,1746959437563,-400.0,9.342e-05,2]